bitfinex/quotes_ETHUSD_20240604
["timestamp","ask_amount","ask_price","bid_price","bid_amount"]
[1717532616238,2.63502,3795.1,3794.7,1.79004962]
[1717532616443,3.42502,3795.1,3794.7,1.79004962]
[1717532616627,3.42502,3795.1,3794.8,0.42644496]
[1717532616985,3.42502,3795.1,3794.9,1.32126577]
[1717532617330,3.42502,3795.1,3794.9,1.41038646]
[1717532620360,5.78462,3795.1,3794.9,1.41038646]
[1717532620877,5.78462,3795.1,3794.9,1.32126577]
[1717532621881,3.42502,3795.1,3794.9,1.32126577]
[1717532624988,2.63502,3795.1,3794.9,1.32126577]
[1717532625185,0.79,3795.0,3794.9,1.32126577]
[1717532625422,2.63502,3795.1,3794.9,1.32126577]
[1717532625727,0.79,3795.0,3794.9,1.32126577]
[1717532628635,3.42502,3795.1,3794.9,1.32126577]
[1717532629897,2.6348,3795.4,3795.0,2.2877]
[1717532630092,2.6348,3795.4,3795.1,1.32126577]
[1717532630909,2.63461,3795.7,3795.2,1.32126577]
[1717532631121,2.63473,3795.5,3795.2,1.32126577]
[1717532631499,2.63473,3795.5,3795.3,1.41080943]
[1717532632913,3.42473,3795.5,3795.3,1.41080943]
[1717532634337,2.63473,3795.5,3795.3,1.41080943]
[1717532639900,2.63453,3795.8,3795.4,1.32126577]
[1717532640211,3.42453,3795.8,3795.5,2.4856]
[1717532640416,3.42453,3795.8,3795.6,1.32126577]
[1717532640619,2.63453,3795.8,3795.6,1.41055201]
[1717532642776,7.3,3796.2,3795.7,1.32126577]
[1717532642924,7.3,3796.2,3795.6,0.08928624]
[1717532642925,7.3,3796.2,3795.9,1.32126577]
[1717532643769,9.93422,3796.2,3795.9,1.32126577]
[1717532646073,7.3,3796.2,3796.0,1.32126577]
[1717532646258,0.79,3796.3,3796.0,1.32126577]
[1717532646458,3.42405,3796.5,3796.0,1.32126577]
[1717532647479,19.57,3796.7,3796.3,1.32126577]
[1717532647776,19.66,3797.2,3796.6,1.32126577]
[1717532647987,0.79,3797.3,3796.7,1.32126577]
[1717532648289,0.79,3797.3,3796.5,2.492]
[1717532648290,2.63342,3797.4,3796.8,1.32126577]
[1717532648789,2.63342,3797.4,3796.9,1.32126577]
[1717532648931,3.42342,3797.4,3796.9,1.32126577]
[1717532649734,0.79,3797.2,3796.9,1.32126577]
[1717532650085,2.63356,3797.2,3797.0,0.08804196]
[1717532650234,2.63356,3797.2,3797.1,1.32126577]
[1717532650442,3.42356,3797.2,3797.1,1.32126577]
[1717532651455,5.91336,3797.2,3797.1,1.32126577]
[1717532654854,3.42356,3797.2,3797.1,1.32126577]
[1717532671203,3.99269833,3797.2,3797.1,1.32126577]
[1717532671405,3.99271086,3797.2,3797.1,1.32126577]
[1717532671921,5.57368549,3797.2,3797.1,1.32126577]
[1717532672308,3.99271086,3797.2,3797.1,1.32126577]
[1717532672506,2.63395,3796.6,3796.1,2.2657]
[1717532672734,2.63395,3796.6,3796.3,1.32126577]
[1717532673025,0.79,3796.4,3796.3,1.32126577]
[1717532674420,2.37098397,3796.4,3796.3,1.32126577]
[1717532675020,0.79,3796.4,3796.3,1.32126577]
[1717532675729,2.37098397,3796.4,3796.3,1.32126577]
[1717532677324,0.79,3796.4,3796.3,1.32126577]
[1717532683851,2.4462,3796.0,3794.7,2.3778]
[1717532684167,0.79,3795.1,3795.0,1.32126577]
[1717532687069,2.63488,3795.3,3795.0,1.32126577]
[1717532687274,0.79,3795.1,3795.0,1.32126577]
[1717532694488,0.79,3795.1,3795.0,1.40698666]
[1717532695376,2.63488,3795.3,3795.0,1.40698666]
[1717532695885,0.79,3795.1,3795.0,1.32126577]
[1717532696401,0.79,3795.1,3795.0,1.40698666]
[1717532698270,2.63488,3795.3,3795.0,1.40698666]
[1717532698888,0.79,3795.1,3795.0,1.40698666]
[1717532700859,2.63488,3795.3,3795.1,2.2548]
[1717532701188,2.63488,3795.3,3795.2,1.32126577]
[1717532701380,2.63488,3795.3,3795.2,1.40704966]
[1717532702647,5.2503,3795.9,3795.2,3.74474966]
[1717532702648,2.63458,3795.7,3795.2,3.74474966]
[1717532702956,2.255,3795.4,3795.3,1.32126577]
[1717532703156,6.045,3795.4,3795.3,1.32126577]
[1717532703381,6.61436373,3795.4,3795.3,1.32126577]
[1717532703546,8.19618603,3795.4,3795.3,1.32126577]
[1717532703955,8.1962778,3795.4,3795.3,1.32126577]
[1717532704445,7.4062778,3795.4,3795.3,1.32126577]
[1717532704661,6.61445589,3795.4,3795.3,1.32126577]
[1717532704858,6.045,3795.4,3795.3,1.32126577]
[1717532705647,6.61443717,3795.4,3795.3,1.32126577]
[1717532705877,5.82443717,3795.4,3795.3,1.32126577]
[1717532706187,6.61443717,3795.4,3795.3,1.32126577]
[1717532707393,8.19619128,3795.4,3795.3,1.32126577]
[1717532707752,6.61443717,3795.4,3795.3,1.32126577]
[1717532708724,8.19622656,3795.4,3795.3,1.32126577]
[1717532709468,5.15122656,3795.4,3795.3,1.32126577]
[1717532709804,5.94122656,3795.4,3795.3,1.32126577]
[1717532710467,5.15122656,3795.4,3795.3,1.32126577]
[1717532710667,4.35943717,3795.4,3795.3,1.32126577]
[1717532710971,5.94119081,3795.4,3795.3,1.32126577]
[1717532711208,4.35943131,3795.4,3795.3,1.32126577]
[1717532711669,5.94113097,3795.4,3795.3,1.32126577]
[1717532712013,2.15113097,3795.4,3795.3,1.45339235]
[1717532712307,2.63474,3795.5,3795.3,1.53921962]
[1717532712620,0.79,3795.7,3795.4,2.2946]
[1717532712923,0.79,3795.7,3795.5,1.32126577]
[1717532714778,2.63453,3795.8,3795.5,1.32126577]
[1717532714981,0.79,3795.6,3795.5,1.32126577]
[1717532715429,0.79,3795.6,3795.5,1.40695215]
[1717532717411,11.88142684,3796.1,3795.5,1.79032002]
[1717532717583,0.79,3795.8,3795.7,1.32126577]
[1717532724971,5.63437,3796.0,3795.7,1.32126577]
[1717532725181,0.79,3795.9,3795.7,1.32126577]
[1717532725661,0.79,3795.9,3795.8,0.08539378]
[1717532725874,0.79,3795.9,3795.8,1.40665955]
[1717532726169,0.79,3795.9,3795.8,1.32126577]
[1717532726947,0.79,3795.9,3795.8,1.40665955]
[1717532727840,5.63437,3796.0,3795.8,1.40665955]
[1717532728046,5.63437,3796.0,3795.9,1.32126577]
[1717532728244,6.42437,3796.0,3795.9,1.32126577]
[1717532728466,5.63437,3796.0,3795.9,1.32126577]
[1717532728776,6.42437,3796.0,3795.9,1.32126577]
[1717532729134,3.0,3796.0,3795.9,1.32126577]
[1717532729486,0.79,3796.0,3795.9,1.40661128]
[1717532729685,3.79,3796.0,3795.9,1.40661128]
[1717532729975,3.79,3796.0,3795.9,1.32126577]
[1717532731692,3.0,3796.0,3795.9,1.32126577]
[1717532732577,3.79,3796.0,3795.9,1.32126577]
[1717532733280,2.63429,3796.1,3795.9,1.32126577]
[1717532733670,3.42429,3796.1,3795.9,1.40660835]
[1717532733992,5.6341,3796.4,3795.9,1.32126577]
[1717532734133,0.79,3796.0,3795.9,1.32126577]
[1717532735031,5.6341,3796.4,3795.9,1.32126577]
[1717532735236,0.79,3796.0,3795.9,1.32126577]
[1717532738295,2.63435,3796.0,3795.9,1.32126577]
[1717532738496,3.42435,3796.0,3795.9,1.32126577]
[1717532741344,3.42435,3796.0,3795.9,1.40380846]
[1717532741646,3.42435,3796.0,3795.9,1.32126577]
[1717532744609,0.79,3796.0,3795.9,1.32126577]
[1717532744958,4.21549095,3796.3,3795.9,3.73333506]
[1717532744959,3.0,3796.2,3795.9,3.73333506]
[1717532745256,3.79,3796.2,3795.9,3.73333506]
[1717532749674,0.79,3796.0,3795.9,1.40383506]
[1717532752865,3.0795,3796.0,3795.9,1.32126577]
[1717532754637,0.79,3796.0,3795.9,1.32126577]
[1717532756126,0.79,3796.0,3795.9,1.4038587]
[1717532757421,2.63429,3796.1,3795.9,1.4038587]
[1717532757624,3.42429,3796.1,3795.9,1.4038587]
[1717532758466,2.63429,3796.1,3795.9,1.4038587]
[1717532758667,3.42429,3796.1,3795.9,1.4038587]
[1717532761588,1.58135235,3796.3,3796.0,1.32126577]
[1717532761803,1.58135235,3796.3,3796.1,1.32126577]
[1717532761804,0.56924205,3796.3,3796.1,1.32126577]
[1717532762011,5.00548235,3796.4,3796.1,1.40364396]
[1717532762012,2.63413,3796.4,3796.1,1.40364396]
[1717532762172,2.63413,3796.4,3796.1,1.32126577]
[1717532762712,4.6211444,3796.6,3796.1,1.78137213]
[1717532762881,3.0,3796.5,3796.2,2.3066]
[1717532763088,4.6211444,3796.6,3796.2,3.62786577]
[1717532763306,3.03979205,3796.6,3796.2,3.62786577]
[1717532768036,3.03979205,3796.6,3796.3,1.32126577]
[1717532770087,3.03979205,3796.6,3796.3,1.68169702]
[1717532772304,3.03979205,3796.6,3796.3,1.32126577]
[1717532774625,0.79,3796.4,3796.3,1.32126577]
[1717532776441,4.61509205,3796.6,3796.3,1.32126577]
[1717532776637,0.79,3796.4,3796.3,1.32126577]
[1717532785676,1.58106746,3796.7,3796.3,3.73796577]
[1717532785974,0.56918778,3796.7,3796.3,3.73796577]
[1717532786367,0.79,3796.6,3796.3,3.73796577]
[1717532786742,3.42394,3796.6,3796.3,3.73796577]
[1717532788083,2.63407,3796.5,3796.3,1.32126577]
[1717532788476,0.79,3796.4,3796.3,1.32126577]
[1717532795610,0.79,3796.4,3796.3,1.68012235]
[1717532795835,3.0,3796.8,3796.3,1.68012235]
[1717532795836,1.58111022,3796.8,3796.3,4.31425235]
[1717532796101,1.58111022,3797.0,3796.7,1.32126577]
[1717532796311,1.58094716,3797.0,3796.9,1.32126577]
[1717532796804,1.58094716,3797.0,3796.9,1.40292115]
[1717532797258,0.56914097,3797.0,3796.9,1.54321327]
[1717532797617,0.56914097,3797.0,3796.9,3.81525789]
[1717532797774,0.56914097,3797.0,3796.9,3.89683351]
[1717532798214,2.15008813,3797.2,3796.9,3.81525789]
[1717532798404,2.15008813,3797.2,3797.1,1.32126577]
[1717532798912,1.58094716,3797.2,3797.1,1.39718908]
[1717532799267,0.56914097,3797.4,3797.1,1.39718908]
[1717532799454,0.56905521,3797.4,3797.1,1.39718908]
[1717532799857,4.58094716,3797.5,3797.1,1.39718908]
[1717532800312,5.37094716,3797.5,3797.1,1.32126577]
[1717532800464,0.56907833,3797.4,3797.1,1.32126577]
[1717532800883,0.56907833,3797.4,3797.2,0.0813748]
[1717532801201,0.56907833,3797.4,3797.3,1.32126577]
[1717532801412,5.37094716,3797.5,3797.3,1.40259235]
[1717532801714,5.37094716,3797.5,3797.3,1.32126577]
[1717532801918,3.79,3797.5,3797.3,1.32126577]
[1717532803429,5.93985533,3797.5,3797.3,1.32126577]
[1717532803581,5.37075755,3797.5,3797.3,1.32126577]
[1717532804227,3.79,3797.5,3797.3,1.32126577]
[1717532804364,5.93986439,3797.5,3797.3,1.32126577]
[1717532804565,5.37075755,3797.5,3797.3,1.32126577]
[1717532804998,3.79,3797.5,3797.3,1.32126577]
[1717532813377,2.63326,3797.6,3797.3,1.32126577]
[1717532813583,3.42326,3797.6,3797.3,1.32126577]
[1717532816904,0.79,3797.6,3797.3,1.32126577]
[1717532820956,0.79,3797.4,3797.3,1.32126577]
[1717532821343,0.79,3797.4,3797.3,1.39948717]
[1717532824734,4.81490051,3797.8,3797.4,2.63337]
[1717532824930,3.23422998,3797.8,3797.7,1.32126577]
[1717532825633,7.3,3797.9,3797.7,1.32126577]
[1717532825873,7.3,3797.9,3797.8,1.32126577]
[1717532827786,7.3,3797.9,3797.8,3.74576577]
[1717532827939,19.57,3798.2,3797.9,2.63302]
[1717532828285,7.3,3798.4,3798.1,1.32126577]
[1717532828480,7.3,3798.4,3798.2,1.32126577]
[1717532828657,7.3,3798.4,3798.2,1.39285346]
[1717532830459,7.3,3798.4,3798.2,1.32126577]
[1717532831381,9.9323,3799.0,3798.3,3.81066577]
[1717532831567,0.79,3798.8,3798.5,1.32126577]
[1717532832291,3.0,3798.9,3798.5,1.32126577]
[1717532832498,0.79,3798.8,3798.5,1.32126577]
[1717532832795,3.0,3798.9,3798.5,1.32126577]
[1717532832994,0.79,3798.8,3798.5,1.32126577]
[1717532833694,9.9323,3799.0,3798.5,1.32126577]
[1717532833997,0.79,3798.8,3798.5,1.32126577]
[1717532834402,0.79,3798.6,3798.5,1.32126577]
[1717532837454,0.79,3798.6,3798.5,1.39803192]
[1717532841865,0.79,3798.7,3798.5,1.39803192]
[1717532842206,0.79,3798.7,3798.6,1.32126577]
[1717532842411,0.79,3798.7,3798.6,1.39798372]
[1717532855398,2.63243,3798.8,3798.6,1.39798372]
[1717532855399,1.58014566,3799.0,3798.6,1.39798372]
[1717532855601,5.14899022,3799.0,3798.8,1.32126577]
[1717532855956,3.0,3799.0,3798.8,1.32126577]
[1717532856646,2.63225,3799.1,3798.8,1.32126577]
[1717532864813,2.63225,3799.1,3798.9,0.07065363]
[1717532865017,2.63225,3799.1,3799.0,1.32126577]
[1717532865711,3.1435,3799.3,3799.0,1.32126577]
[1717532865913,3.0,3799.2,3799.0,1.32126577]
[1717532866236,3.0,3799.2,3799.1,0.07037775]
[1717532866438,3.0,3799.2,3799.1,1.32126577]
[1717532867554,3.79,3799.3,3799.1,1.32126577]
[1717532867857,3.79,3799.3,3799.2,1.32126577]
[1717532868440,3.0,3799.3,3799.2,1.32126577]
[1717532868750,7.3,3799.5,3799.2,1.32126577]
[1717532868921,3.0,3799.4,3799.2,1.32126577]
[1717532869116,3.0,3799.5,3799.2,1.32126577]
[1717532869745,5.4839,3799.6,3799.2,1.32126577]
[1717532870323,3.0,3799.6,3799.2,1.32126577]
[1717532870971,3.0,3799.6,3799.3,0.07093445]
[1717532871148,3.0,3799.6,3799.4,1.32126577]
[1717532871468,0.79,3799.5,3799.4,1.32126577]
[1717532871655,3.79,3799.5,3799.4,1.32126577]
[1717532872033,0.79,3799.5,3799.4,1.32126577]
[1717532872365,3.79,3799.5,3799.4,1.32126577]
[1717532872664,3.0,3799.5,3799.4,1.32126577]
[1717532873029,3.0,3799.6,3799.4,1.32126577]
[1717532873768,2.63161,3800.0,3799.5,1.32126577]
[1717532874077,2.63161,3800.0,3799.6,1.32126577]
[1717532874240,0.79,3799.9,3799.6,1.32126577]
[1717532876653,5.63141,3800.3,3799.8,1.32126577]
[1717532876981,0.79,3799.9,3799.4,5.02244]
[1717532877283,0.79,3799.9,3799.5,0.06943895]
[1717532877483,0.79,3799.9,3799.6,0.50918789]
[1717532877641,0.79,3799.9,3799.6,0.57857884]
[1717532878279,0.79,3799.9,3799.8,1.32126577]
[1717532878772,0.79,3799.9,3799.8,1.39688932]
[1717532880904,0.79,3799.9,3799.8,1.32126577]
[1717532881060,0.79,3799.9,3799.8,1.50431114]
[1717532884324,2.63132,3800.4,3799.9,2.3314]
[1717532884471,2.63132,3800.4,3800.3,1.32126577]
[1717532884977,3.42114,3800.7,3800.3,1.39648044]
[1717532885195,0.79,3800.5,3800.4,1.32126577]
[1717532885586,0.79,3800.5,3800.4,1.39634088]
[1717532886607,0.79,3800.5,3800.4,1.32126577]
[1717532888593,3.2826,3800.5,3800.4,1.32126577]
[1717532888793,6.2826,3800.5,3800.4,1.32126577]
[1717532891102,6.2826,3800.5,3800.4,1.39625243]
[1717532893497,3.79,3800.5,3800.4,1.39625243]
[1717532893688,0.79,3800.5,3800.4,1.39625243]
[1717532894399,3.42123,3800.5,3800.4,1.39625243]
[1717532894597,6.42123,3800.5,3800.4,1.39625243]
[1717532900590,5.63123,3800.5,3800.4,1.39625243]
[1717532900795,6.42123,3800.5,3800.4,1.39625243]
[1717532903437,2.63123,3800.5,3800.4,4.00347767]
[1717532904193,2.63107,3800.8,3800.4,4.00347767]
[1717532904399,3.79,3800.7,3800.5,1.32126577]
[1717532904823,3.79,3800.7,3800.6,0.07473859]
[1717532905049,3.79,3800.7,3800.6,1.39600436]
[1717532907171,3.0,3800.7,3800.6,1.39600436]
[1717532907336,3.0,3800.7,3800.6,1.79632732]
[1717532907673,2.63107,3800.8,3800.6,1.79632732]
[1717532907838,2.63107,3800.8,3800.7,1.32126577]
[1717532908035,5.63107,3800.8,3800.7,1.32126577]
[1717532908338,5.63107,3800.8,3800.7,1.39428281]
[1717532911303,2.63107,3800.8,3800.7,1.83446591]
[1717532912519,3.0,3801.3,3800.8,2.2755]
[1717532912686,3.0,3801.3,3801.2,1.32126577]
[1717532913107,3.0,3801.3,3801.2,1.39157731]
[1717532913928,2.96436851,3801.3,3801.2,1.39157731]
[1717532914408,2.96436851,3801.3,3801.2,1.32126577]
[1717532914611,3.75436851,3801.3,3801.2,1.45339235]
[1717532915120,0.79,3801.3,3801.2,1.45339235]
[1717532916083,0.79,3801.3,3801.2,1.52370389]
[1717532916283,2.63066,3801.4,3801.2,1.52370389]
[1717532916487,2.63066,3801.4,3801.2,1.45339235]
[1717532916714,0.79,3801.3,3801.2,1.45339235]
[1717532924300,0.79,3801.3,3801.2,1.32126577]
[1717532929127,2.63066,3801.4,3801.2,1.32126577]
[1717532929330,0.79,3801.3,3801.2,1.32126577]
[1717532930114,2.63066,3801.4,3801.2,1.32126577]
[1717532930302,2.63066,3801.4,3801.3,1.32126577]
[1717532930508,2.63066,3801.4,3801.3,1.39115495]
[1717532932231,2.63066,3801.4,3801.3,1.76227045]
[1717532934433,2.63066,3801.4,3801.3,1.39115495]
[1717532946408,5.12886,3801.4,3801.3,1.32126577]
[1717532947018,2.63066,3801.4,3801.3,1.32126577]
[1717532949117,2.63066,3801.4,3801.3,1.39101649]
[1717532952777,5.07006,3801.4,3801.3,1.32126577]
[1717532956660,5.07006,3801.4,3800.0,100.54706818]
[1717532956661,2.3979,3800.6,3800.0,100.54706818]
[1717532956831,0.79,3800.1,3800.0,100.0]
[1717532957462,0.79,3800.1,3800.0,100.06807771]
[1717532958330,0.79,3800.1,3800.0,101.38934348]
[1717532960422,0.79,3800.1,3800.0,104.03964893]
[1717532965072,2.63145,3800.2,3800.0,106.30744893]
[1717532965237,2.63145,3800.2,3800.1,1.32126577]
[1717532965756,2.63145,3800.2,3800.1,1.38989039]
[1717532968557,0.79,3800.4,3800.1,1.38989039]
[1717532968901,0.79,3800.4,3800.2,3.97157122]
[1717532969256,0.79,3800.4,3800.3,0.06846053]
[1717532969456,0.79,3800.4,3800.3,1.3897263]
[1717532982206,5.01255,3800.5,3800.3,1.3897263]
[1717532982207,2.63125,3800.5,3800.3,1.3897263]
[1717532982355,2.63125,3800.5,3800.4,1.32126577]
[1717532982556,5.63125,3800.5,3800.4,1.38961035]
[1717532983925,2.63125,3800.5,3800.4,1.77542139]
[1717532984143,2.63125,3800.5,3800.4,1.38961035]
[1717532984349,3.42125,3800.5,3800.4,1.38961035]
[1717532986909,8.5255,3800.5,3800.4,1.38961035]
[1717532987096,11.5255,3800.5,3800.4,1.38961035]
[1717532998751,11.5255,3800.5,3800.4,1.38961035]
[1717532998915,11.5255,3800.5,3800.4,0.06834458]
[1717532999117,14.15675,3800.5,3800.4,0.06834458]
[1717532999320,7.6393,3800.1,3800.0,100.0]
[1717532999523,11.4293,3800.1,3800.0,101.32126577]
[1717533005581,10.6393,3800.1,3800.0,101.32126577]
[1717533005880,11.4293,3800.1,3800.0,101.32126577]
[1717533006647,14.0608,3800.1,3800.0,101.32126577]
[1717533014806,10.8945,3800.1,3800.0,101.32126577]
[1717533015005,11.6845,3800.1,3800.0,101.32126577]
[1717533017260,9.053,3800.1,3800.0,101.32126577]
[1717533017596,9.053,3800.1,3800.0,101.38582412]
[1717533025563,11.6845,3800.1,3800.0,101.38582412]
[1717533025831,14.62051726,3800.1,3800.0,101.38582412]
[1717533026802,14.62053287,3800.1,3800.0,101.38582412]
[1717533027395,14.62053287,3800.1,3800.0,100.06455835]
[1717533028189,14.62053761,3800.1,3800.0,100.06455835]
[1717533029706,54.32550661,3800.1,3800.0,93.63113739]
[1717533029888,17.52703886,3800.1,3800.0,92.6069453]
[1717533030087,20.84803886,3800.1,3800.0,91.8825553]
[1717533030334,61.30585086,3800.1,3800.0,91.6255553]
[1717533030650,63.80162575,3800.1,3800.0,91.6255553]
[1717533031821,63.05162575,3800.1,3800.0,91.6255553]
[1717533034225,61.61955475,3800.1,3800.0,91.6255553]
[1717533039130,60.34356345,3800.1,3800.0,91.6255553]
[1717533040513,57.57256345,3800.1,3800.0,91.6255553]
[1717533040709,36.5894189,3800.1,3800.0,91.6255553]
[1717533041101,23.11833989,3800.1,3800.0,91.6255553]
[1717533041297,18.78242759,3800.1,3800.0,91.6255553]
[1717533041557,17.37926159,3800.1,3800.0,91.6255553]
[1717533041836,14.04065159,3800.1,3800.0,91.6255553]
[1717533042600,10.62985859,3800.1,3800.0,91.6255553]
[1717533042832,11.41985859,3800.1,3800.0,91.6255553]
[1717533043037,14.41985859,3800.1,3800.0,91.6255553]
[1717533044959,5.09185734,3800.1,3800.0,95.59712652]
[1717533045839,2.6315,3800.1,3800.0,95.59712652]
[1717533047250,5.6315,3800.1,3800.0,95.59712652]
[1717533049624,3.0,3800.1,3800.0,95.59712652]
[1717533049825,3.0,3800.3,3800.0,95.59712652]
[1717533050034,3.0,3800.3,3800.1,3.97157122]
[1717533050227,3.0,3800.3,3800.1,4.02957366]
[1717533053730,3.0,3800.3,3800.2,2.4561]
[1717533053929,3.0,3800.3,3800.2,3.77736577]
[1717533054133,3.0,3800.3,3800.2,3.83532005]
[1717533054343,3.0,3800.3,3800.2,6.4856255]
[1717533055210,3.0,3800.5,3800.2,7.2756255]
[1717533055425,3.0,3800.5,3800.3,1.32126577]
[1717533055621,3.0,3800.5,3800.3,1.37915422]
[1717533056641,3.0,3800.6,3800.3,1.37915422]
[1717533056842,3.0,3800.6,3800.4,0.99258651]
[1717533057065,3.0,3800.6,3800.5,1.32126577]
[1717533057265,3.0,3800.6,3800.5,1.37889288]
[1717533078514,3.0,3800.9,3800.5,1.37889288]
[1717533078693,3.0,3800.9,3800.6,2.275]
[1717533078900,3.0,3800.9,3800.7,1.32126577]
[1717533079421,3.0,3800.9,3800.8,0.05561055]
[1717533079706,3.0,3800.9,3800.8,1.32126577]
[1717533079920,3.0,3800.9,3800.8,1.37681149]
[1717533088118,3.0,3801.0,3800.8,1.37681149]
[1717533088318,3.0,3801.0,3800.9,1.32126577]
[1717533088679,3.0,3801.0,3800.9,1.37673978]
[1717533097947,3.0,3801.3,3801.0,2.4154]
[1717533098155,3.0,3801.3,3801.1,2.11126577]
[1717533098559,3.0,3801.5,3801.1,2.11126577]
[1717533102548,3.0,3801.5,3801.3,1.32126577]
[1717533103411,3.0,3801.6,3801.3,1.32126577]
[1717533103661,3.0,3801.6,3801.3,2.11126577]
[1717533103863,3.0,3801.6,3801.3,2.82701235]
[1717533104044,3.0,3801.6,3801.4,0.05508017]
[1717533104275,3.0,3801.6,3801.5,1.32126577]
[1717533104633,3.0,3801.6,3801.5,1.37629782]
[1717533125842,2.6811093,3802.0,3801.5,4.52979782]
[1717533126188,3.0,3801.9,3801.8,0.79]
[1717533126392,3.0,3801.9,3801.8,2.11126577]
[1717533126690,3.0,3801.9,3801.8,2.16426344]
[1717533127358,0.0508493,3802.0,3801.8,2.16426344]
[1717533127553,0.0508493,3802.0,3801.9,1.32126577]
[1717533128100,0.0508493,3802.0,3801.9,1.37421533]
[1717533128600,0.0508493,3802.0,3801.9,4.01594134]
[1717533130200,7.3,3802.6,3802.0,2.3356]
[1717533130403,19.66,3803.0,3802.5,2.11126577]
[1717533130727,19.66,3803.0,3802.9,0.79]
[1717533130854,2.62938,3803.2,3802.9,2.11126577]
[1717533131052,2.62916,3803.5,3803.1,0.79]
[1717533131254,2.62916,3803.5,3803.2,1.32126577]
[1717533131454,7.3,3803.7,3803.4,0.79]
[1717533131703,7.3,3803.7,3803.5,1.32126577]
[1717533131918,7.3,3803.7,3803.5,1.37309246]
[1717533132422,7.3,3803.7,3803.6,0.79]
[1717533132554,7.3,3803.7,3803.6,2.11126577]
[1717533133143,7.3,3803.7,3803.6,2.16287659]
[1717533134822,7.3,3803.7,3803.6,1.37287659]
[1717533134965,7.3,3803.7,3803.6,2.16287659]
[1717533135514,2.62875,3804.1,3803.6,2.16287659]
[1717533135802,3.0,3804.0,3803.8,0.79]
[1717533135971,3.0,3804.0,3803.9,1.32126577]
[1717533142495,2.62875,3804.1,3803.9,1.32126577]
[1717533142699,2.62875,3804.1,3803.9,1.53239235]
[1717533144397,2.62875,3804.1,3803.9,1.32126577]
[1717533163834,2.62875,3804.1,3804.0,1.32126577]
[1717533164412,2.62875,3804.1,3804.0,1.37204531]
[1717533169720,2.62858,3804.4,3804.0,1.37204531]
[1717533169911,12.36,3804.7,3804.3,2.11126577]
[1717533170105,12.36,3804.7,3804.1,0.46109453]
[1717533170106,12.36,3804.7,3804.6,1.32126577]
[1717533170347,2.6496955,3804.9,3804.6,1.32126577]
[1717533170535,2.6496955,3804.9,3804.6,1.37137448]
[1717533170733,2.6496955,3804.9,3804.6,1.32126577]
[1717533170933,2.6496955,3804.9,3804.7,0.44604658]
[1717533171156,2.6496955,3804.9,3804.8,1.32126577]
[1717533171356,0.0214555,3804.9,3804.8,1.32126577]
[1717533172479,0.0214555,3804.9,3804.8,4.50996577]
[1717533175743,0.0214555,3804.9,3804.8,3.71996577]
[1717533175925,0.0214555,3804.9,3804.8,1.32126577]
[1717533177224,0.0214555,3804.9,3804.8,1.80815701]
[1717533181703,0.0214555,3804.9,3804.8,1.32126577]
[1717533183998,0.0214555,3804.9,3804.8,2.11126577]
[1717533188511,0.0214555,3804.9,3804.8,5.01896086]
[1717533191278,13.5701296,3829.4,3804.8,5.01896086]
[1717533191279,2.2766,3807.2,3805.8,2.62753]
[1717533191485,2.6269,3806.8,3806.5,2.11126577]
[1717533191787,2.6269,3806.8,3806.7,0.79]
[1717533191982,2.6269,3806.8,3806.7,2.11126577]
[1717533192199,2.6269,3806.8,3806.7,2.15958694]
[1717533192484,2.6269,3806.8,3806.7,1.36958694]
[1717533193014,2.6269,3806.8,3806.7,2.15958694]
[1717533193318,2.62661,3807.2,3806.7,2.37554563]
[1717533193520,2.62661,3807.2,3807.1,1.32126577]
[1717533193826,5.62661,3807.2,3807.1,1.32126577]
[1717533193997,2.62661,3807.2,3807.1,1.36907469]
[1717533194803,4.90321,3807.2,3807.1,1.36907469]
[1717533195291,4.90321,3807.2,3807.1,1.32126577]
[1717533195612,4.90321,3807.2,3807.1,1.36907469]
[1717533196899,7.52982,3807.2,3807.1,1.36907469]
[1717533197102,7.52982,3807.2,3805.5,2.4148]
[1717533197103,2.62725,3806.3,3805.5,2.4148]
[1717533197302,2.62725,3806.3,3806.2,1.32126577]
[1717533198121,7.3,3806.6,3806.2,1.32126577]
[1717533198317,7.3,3806.6,3806.4,1.32126577]
[1717533198525,2.62701,3806.7,3806.4,1.32126577]
[1717533199104,2.62701,3806.7,3806.2,0.21112658]
[1717533199105,2.62701,3806.7,3806.6,1.32126577]
[1717533199824,2.62676,3807.0,3806.6,2.11126577]
[1717533200022,2.62676,3807.0,3806.9,1.32126577]
[1717533200230,7.3,3807.2,3806.9,1.32126577]
[1717533200388,7.3,3807.2,3807.1,1.32126577]
[1717533202935,2.62656,3807.3,3807.1,1.32126577]
[1717533203103,2.62656,3807.3,3807.2,1.32126577]
[1717533207744,2.62656,3807.3,3807.2,1.36537373]
[1717533209743,2.62656,3807.3,3807.2,1.32126577]
[1717533210425,5.62656,3807.3,3807.2,1.32126577]
[1717533211445,5.62653,3807.3,3807.2,1.32126577]
[1717533212201,8.25306,3807.3,3807.2,1.32126577]
[1717533218229,8.82077318,3807.3,3807.2,1.32126577]
[1717533218426,16.42191418,3807.3,3807.2,1.32126577]
[1717533218779,13.50665518,3807.3,3807.2,1.32126577]
[1717533218946,13.06351218,3807.3,3807.2,1.32126577]
[1717533219473,14.22864518,3807.3,3807.2,1.32126577]
[1717533221974,15.01564518,3807.3,3807.2,1.32126577]
[1717533222773,15.01568935,3807.3,3807.2,1.32126577]
[1717533223634,2.62748,3806.0,3805.8,2.398]
[1717533223877,2.62748,3806.0,3805.9,1.36615897]
[1717533224329,2.62748,3806.0,3805.9,1.32126577]
[1717533224534,2.62748,3806.0,3805.9,1.36615897]
[1717533224963,2.62748,3806.0,3805.9,1.32126577]
[1717533227758,2.62748,3806.0,3805.9,1.36615897]
[1717533227961,5.25496,3806.0,3805.9,1.36615897]
[1717533229659,5.25496,3806.0,3805.9,1.32126577]
[1717533229859,10.88244,3806.0,3805.9,1.32126577]
[1717533230303,10.88244,3806.0,3804.9,2.3121]
[1717533230304,2.62812,3805.0,3804.9,2.3121]
[1717533230603,2.62812,3805.0,3804.9,3.67890056]